bitfinex/quotes_SOLUSD_20260113
["timestamp","ask_amount","ask_price","bid_price","bid_amount"]
[1768325467024,2.26044347,142.97,142.94,0.71224545]
[1768325468692,6.99496362,142.96,142.94,0.71224545]
[1768325468894,6.99496362,142.96,142.9,7.7098639]
[1768325468895,2.96693692,142.95,142.9,7.7098639]
[1768325469108,2.26044347,142.94,142.91,0.71224545]
[1768325470116,2.96688131,142.93,142.89,7.71059999]
[1768325470321,2.26044347,142.94,142.9,0.71224545]
[1768325470908,9.25671515,142.94,142.9,0.71224545]
[1768325471906,9.25671515,142.94,142.9,7.71012688]
[1768325472125,9.25671515,142.94,142.91,0.71224545]
[1768325472311,6.99627168,142.94,142.91,0.71224545]
[1768325473104,9.25671515,142.94,142.91,0.71224545]
[1768325474614,0.70660809,142.97,142.91,0.71224545]
[1768325474922,0.70660809,142.97,142.92,0.71224545]
[1768325474923,9.25550691,142.96,142.92,0.71224545]
[1768325475120,0.70649345,142.93,142.89,6.99821772]
[1768325475331,2.26044347,142.93,142.9,0.71224545]
[1768325475837,37.24434125,142.95,142.87,0.71224545]
[1768325475838,2.96126235,142.91,142.87,0.71224545]
[1768325476130,2.26044347,142.92,142.87,0.71224545]
[1768325476428,2.26044347,142.89,142.85,0.67273641]
[1768325476725,0.718995,142.88,142.81,62.8]
[1768325476903,0.64275983,142.81,142.76,15.0]
[1768325477227,2.26044347,142.82,142.73,0.2]
[1768325477228,0.718995,142.76,142.73,0.2]
[1768325477394,2.26044347,142.8,142.73,0.2]
[1768325477395,0.718995,142.79,142.73,0.2]
[1768325477597,2.26044347,142.76,142.73,0.2]
[1768325478007,0.718995,142.78,142.73,0.2]
[1768325478213,7.00329154,142.79,142.72,0.2]
[1768325478214,0.718995,142.74,142.72,0.2]
[1768325478398,0.718995,142.71,142.66,0.2]
[1768325478605,2.26044347,142.68,142.66,0.2]
[1768325478820,13.478995,142.73,142.67,0.67273641]
[1768325479119,2.26044347,142.68,142.66,0.2]
[1768325479325,2.26044347,142.68,142.6,27.99096518]
[1768325479326,0.718995,142.66,142.6,54.349588]
[1768325479621,0.618995,142.62,142.6,1e-08]
[1768325479824,0.518995,142.6,142.52,3.63982679]
[1768325480022,5.39263133,142.58,142.52,0.67273641]
[1768325480229,5.39263133,142.59,142.52,0.67273641]
[1768325480410,5.39263133,142.56,142.52,0.67273641]
[1768325480612,0.718995,142.63,142.55,0.67273641]
[1768325480832,0.718995,142.66,142.56,6.6801107]
[1768325481004,7.72866834,142.66,142.57,7.01364147]
[1768325481204,0.718995,142.65,142.58,7.31951089]
[1768325481409,0.718995,142.65,142.57,5.39263133]
[1768325481410,7.72818462,142.67,142.6,12.71108291]
[1768325481610,0.718995,142.69,142.63,5.69863633]
[1768325481917,6.11162633,142.72,142.65,0.306005]
[1768325482121,7.00626253,142.73,142.62,33.71955042]
[1768325482122,0.718995,142.69,142.62,33.71955042]
[1768325482305,24.5218514,142.73,142.64,5.39263133]
[1768325482631,7.00626253,142.73,142.63,0.67273641]
[1768325482807,6.6801107,142.72,142.6,7.01244658]
[1768325483130,7.00946593,142.67,142.61,5.39263133]
[1768325483433,7.00946593,142.67,142.62,5.39263133]
[1768325483631,5.39263133,142.64,142.59,0.1]
[1768325483835,6.6801107,142.66,142.58,6.06536774]
[1768325484319,24.532421,142.67,142.6,0.67273641]
[1768325484516,5.39263133,142.61,142.52,0.67273641]
[1768325484716,12.78,142.64,142.55,0.67273641]
[1768325484915,6.6801107,142.63,142.52,0.67273641]
[1768325485116,5.39263133,142.58,142.52,6.06536774]
[1768325485318,7.01163932,142.62,142.55,0.67273641]
[1768325485518,5.39263133,142.61,142.55,0.67273641]
[1768325485718,24.54073762,142.62,142.55,6.06536774]
[1768325486033,7.01065619,142.64,142.58,5.39263133]
[1768325486217,7.00770847,142.7,142.6,0.67273641]
[1768325486429,5.39263133,142.67,142.6,0.67273641]
[1768325486624,5.39263133,142.67,142.6,6.06536774]
[1768325486941,5.39263133,142.67,142.61,5.39263133]
[1768325487113,31.20709036,142.7,142.62,5.39263133]
[1768325487428,29.91961099,142.7,142.64,5.39263133]
[1768325487831,12.4003398,142.7,142.64,0.67273641]
[1768325488031,35.01665869,142.79,142.62,7.01150023]
[1768325488032,18.17263133,142.8,142.67,6.06536774]
[1768325488233,18.17263133,142.8,142.66,5.39263133]
[1768325488436,5.39263133,142.71,142.65,6.06536774]
[1768325489127,19.4601107,142.75,142.67,6.06536774]
[1768325489339,5.39263133,142.74,142.68,5.39263133]
[1768325489523,7.00574471,142.74,142.69,5.39263133]
[1768325489726,5.39263133,142.73,142.68,5.39263133]
[1768325489921,5.39263133,142.71,142.65,0.67273641]
[1768325490233,5.39263133,142.71,142.66,6.06536774]
[1768325490427,5.39263133,142.7,142.66,0.67273641]
[1768325490733,5.39263133,142.72,142.66,6.06536774]
[1768325491034,24.52010648,142.74,142.67,6.06536774]
[1768325491234,24.52010648,142.74,142.69,0.67273641]
[1768325491235,24.52055148,142.74,142.69,0.67273641]
[1768325491529,12.78,142.78,142.7,0.67273641]
[1768325491712,5.39263133,142.75,142.7,0.67273641]
[1768325492114,12.39690393,142.77,142.71,6.06536774]
[1768325492320,5.39263133,142.76,142.71,6.06536774]
[1768325492613,5.39263133,142.75,142.68,0.67273641]
[1768325492808,5.39263133,142.76,142.71,6.06536774]
[1768325493035,7.0042726,142.77,142.72,6.06536774]
[1768325493242,5.39263133,142.76,142.72,0.67273641]
[1768325493534,5.39263133,142.73,142.67,6.06536774]
[1768325493721,5.39263133,142.72,142.67,6.06536774]
[1768325494117,5.39263133,142.73,142.68,5.39263133]
[1768325494524,66.21642784,142.77,142.73,0.67273641]
[1768325494525,7.0042726,142.77,142.73,0.67273641]
[1768325494726,7.0042726,142.77,142.73,0.61673426]
[1768325495130,7.0042726,142.77,142.72,5.39263133]
[1768325495131,7.05586215,142.86,142.76,5.39263133]
[1768325495335,5.39263133,142.82,142.77,5.39263133]
[1768325495527,5.39263133,142.83,142.75,19.78518861]
[1768325495839,5.39263133,142.82,142.77,5.39263133]
[1768325496216,5.39263133,142.82,142.77,5.33263133]
[1768325496542,5.39263133,142.8,142.75,5.39263133]
[1768325496714,0.65287901,142.78,142.68,12.78]
[1768325496917,0.65287901,142.8,142.74,5.39263133]
[1768325497125,0.19241126,142.82,142.75,5.39263133]
[1768325497324,0.19241126,142.82,142.77,5.39263133]
[1768325497517,29.89728721,142.83,142.78,5.39263133]
[1768325497932,29.89728721,142.83,142.75,7.00518629]
[1768325498130,7.00133025,142.83,142.78,5.39263133]
[1768325498334,5.39263133,142.85,142.78,12.78]
[1768325498527,34.99506661,142.88,142.78,12.78]
[1768325498528,5.39263133,142.83,142.78,12.78]
[1768325498841,5.39263133,142.83,142.78,18.17263133]
[1768325499018,5.39263133,142.83,142.78,5.39263133]
[1768325499217,5.58955518,142.81,142.76,18.17263133]
[1768325499432,8.93800754,142.81,142.76,21.52108369]
[1768325499626,8.93800754,142.81,142.76,12.78]
[1768325499833,8.93800754,142.81,142.76,21.52108369]
[1768325500032,8.93800754,142.81,142.76,8.74108369]
[1768325500336,0.19692385,142.81,142.76,8.74108369]
[1768325500927,0.19692385,142.81,142.73,0.68658095]
[1768325501132,0.19692385,142.81,142.74,8.74108369]
[1768325501329,15.74486573,142.78,142.73,0.68658095]
[1768325501726,7.00378204,142.78,142.73,9.42766464]
[1768325502455,16.3831279,142.8,142.74,16.43332156]
[1768325502629,7.00284156,142.8,142.75,9.42766464]
[1768325503132,15.74392525,142.8,142.75,0.68658095]
[1768325504422,7.00284156,142.8,142.75,0.68658095]
[1768325504627,15.74392525,142.8,142.75,0.68658095]
[1768325505234,8.74108369,142.81,142.75,16.43275963]
[1768325505538,15.7429169,142.82,142.77,0.68658095]
[1768325506122,7.00183321,142.82,142.77,9.42766464]
[1768325507021,26.89411885,142.86,142.8,9.42766464]
[1768325507235,18.15303516,142.86,142.82,8.74108369]
[1768325507539,26.89166899,142.88,142.82,8.74108369]
[1768325507769,33.23887888,142.87,142.81,0.68658095]
[1768325507944,33.23887888,142.87,142.81,9.42766464]
[1768325508129,33.23887888,142.87,142.82,8.74108369]
[1768325508654,6.99937005,142.87,142.83,9.42766464]
[1768325508864,6.99898005,142.88,142.84,9.42766464]
[1768325509225,6.99898005,142.88,142.84,0.68658095]
[1768325509552,6.99898005,142.88,142.83,8.74108369]
[1768325509957,6.99898005,142.88,142.83,16.42895416]
[1768325510253,6.99898005,142.88,142.83,0.68658095]
[1768325510553,15.74006374,142.88,142.83,9.42766464]
[1768325511029,6.99898005,142.88,142.83,16.42895435]
[1768325511232,6.99850007,142.89,142.84,9.42766464]
[1768325511532,6.99757818,142.91,142.86,9.42766464]
[1768325511734,6.99757818,142.91,142.87,9.42766464]
[1768325512048,8.74108369,142.94,142.89,0.68658095]
[1768325512262,26.23022275,142.95,142.89,9.40141261]
[1768325512737,26.23022275,142.95,142.9,8.74108369]
[1768325513143,6.99641371,142.94,142.89,9.40141261]
[1768325513453,8.74108369,142.93,142.89,0.66032892]
[1768325513842,8.74108369,142.93,142.87,21.52108369]
[1768325514153,8.74108369,142.93,142.87,29.20687867]
[1768325514354,8.95922716,142.93,142.87,20.46579498]
[1768325514524,8.74108369,142.9,142.86,0.68658095]
[1768325514837,8.74108369,142.91,142.86,0.68658095]
[1768325515223,15.73898431,142.9,142.86,0.68658095]
[1768325515433,8.74108369,142.88,142.85,12.78]
[1768325515624,8.74108369,142.88,142.84,13.46658095]
[1768325515924,8.74108369,142.88,142.84,12.78]
[1768325516130,8.74108369,142.88,142.83,15.74196669]
[1768325516523,8.74108369,142.88,142.83,7.68746395]
[1768325516923,8.74108369,142.87,142.82,19.7816505]
[1768325517354,8.74108369,142.85,142.82,12.78]
[1768325517643,8.74108369,142.84,142.82,12.78]
[1768325518445,8.74108369,142.85,142.82,12.78]
[1768325518633,8.74108369,142.84,142.79,16.43090541]
[1768325518840,8.74108369,142.84,142.79,20.44982172]
[1768325519025,8.74108369,142.84,142.8,7.68936381]
[1768325519228,15.74193467,142.84,142.8,7.68936381]
[1768325519458,0.22657951,142.86,142.8,7.68936381]
[1768325519753,15.74109788,142.86,142.81,0.68658095]
[1768325520056,8.74108369,142.86,142.82,0.68658095]
[1768325520243,6.99907068,142.88,142.83,0.68658095]
[1768325520449,8.74108369,142.86,142.81,9.42766464]
[1768325520751,8.74108369,142.87,142.82,8.74108369]
[1768325520951,33.885843,142.88,142.83,0.68658095]
[1768325521452,15.74015437,142.88,142.83,16.42858851]
[1768325521656,15.74015437,142.88,142.83,9.42766464]
[1768325521857,8.95922716,142.87,142.81,7.68888671]
[1768325522054,0.22240388,142.85,142.8,21.50108369]
[1768325522256,8.96348757,142.85,142.8,12.76]
[1768325522459,8.74108369,142.83,142.77,9.42766464]
[1768325522644,8.74108369,142.83,142.77,0.68658095]
[1768325522645,8.74108369,142.82,142.77,0.68658095]
[1768325522839,8.9676632,142.83,142.77,16.43170839]
[1768325523241,8.74108369,142.84,142.78,9.42766464]
[1768325523463,15.74241394,142.83,142.78,9.42766464]
[1768325524064,8.74108369,142.8,142.76,12.76]
[1768325524239,9.38526843,142.81,142.76,19.76460848]
[1768325524434,9.38526843,142.81,142.76,19.76465442]
[1768325524937,8.74108369,142.79,142.76,12.76]
[1768325525244,0.67064072,142.82,142.76,9.42236584]
[1768325525436,9.40698013,142.8,142.75,7.00476632]
[1768325525756,8.94199299,142.79,142.73,29.18830699]
[1768325525955,15.74339445,142.81,142.76,0.68128215]
[1768325526163,7.00231076,142.81,142.76,16.42692657]
[1768325526454,7.00143682,142.83,142.78,9.42236584]
[1768325527148,7.00143682,142.83,142.79,8.74108369]
[1768325527552,8.74108369,142.85,142.79,9.42236584]
[1768325527750,7.00081203,142.85,142.81,9.42236584]
[1768325528151,6.99976395,142.87,142.83,8.74108369]
[1768325528446,6.99976395,142.87,142.82,9.42236584]
[1768325528762,6.99976395,142.87,142.81,12.78]
[1768325528763,9.40698013,142.86,142.81,8.74108369]
[1768325528960,8.94199299,142.85,142.8,8.74108369]
[1768325529460,7.00056013,142.85,142.8,16.42502423]
[1768325529668,7.00056013,142.85,142.81,9.42236584]
[1768325530464,7.00005301,142.86,142.82,8.74108369]
[1768325531561,7.00005301,142.86,142.81,9.42236584]
[1768325531966,7.00005301,142.86,142.81,16.42467312]
[1768325532142,7.00005301,142.86,142.81,9.42236584]
[1768325532348,16.40703314,142.86,142.81,9.42236584]
[1768325533152,33.90668314,142.86,142.81,9.42236584]
[1768325533354,9.40233026,142.84,142.77,7.68548862]
[1768325533559,9.40233026,142.84,142.79,8.74108369]
[1768325533759,7.00133025,142.83,142.79,8.74108369]
[1768325533960,6.99937005,142.87,142.82,8.74108369]
[1768325534169,7.19558251,142.87,142.82,8.74108369]
[1768325534361,7.19558251,142.87,142.82,9.42236584]
[1768325534566,6.99937005,142.87,142.83,8.74108369]
[1768325534761,6.99937005,142.87,142.83,9.42236584]
[1768325534959,6.99937005,142.87,142.83,8.74108369]
[1768325535161,16.40635018,142.87,142.82,8.74108369]
[1768325535769,8.74108369,142.86,142.81,9.42236584]
[1768325535971,0.66124657,142.85,142.8,8.74108369]
[1768325536272,9.40233026,142.85,142.8,8.74108369]
[1768325536672,9.40233026,142.85,142.8,9.40589706]
[1768325536875,9.39777292,142.83,142.78,22.18589706]
[1768325537050,7.00182047,142.82,142.78,22.18589706]
[1768325537672,15.74290416,142.82,142.78,0.66481337]
[1768325537873,8.74108369,142.81,142.76,9.40589706]
[1768325538062,8.74108369,142.81,142.77,0.66481337]
[1768325538575,33.43849032,142.82,142.77,0.66481337]
[1768325538780,8.74108369,142.81,142.77,0.66481337]
[1768325539153,17.69558616,142.82,142.77,9.40589706]
[1768325539375,7.00242156,142.81,142.78,9.40589706]
[1768325539571,7.00242156,142.81,142.79,0.66481337]
[1768325539777,7.0017247,142.83,142.8,0.66481337]
[1768325540559,26.24142059,142.86,142.81,9.40589706]
[1768325540756,7.00056595,142.85,142.82,0.66481337]
[1768325541354,6.99937005,142.87,142.83,0.66481337]
[1768325541658,6.99937005,142.87,142.81,7.6670254]
[1768325541869,6.99937005,142.87,142.82,9.40589706]
[1768325542364,6.99937005,142.87,142.82,16.40759161]
[1768325542563,6.99937005,142.87,142.82,9.40589706]
[1768325543171,16.41589776,142.88,142.82,16.40755223]
[1768325543373,6.99839037,142.89,142.84,9.40589706]
[1768325543677,6.99839037,142.89,142.84,16.40670938]
[1768325544381,15.73947406,142.89,142.84,9.40589706]
[1768325545061,8.74108369,142.88,142.83,21.52108369]
[1768325545300,6.99937005,142.87,142.83,12.78]
[1768325545575,15.74045374,142.87,142.83,12.78]
[1768325545970,15.74045374,142.87,142.82,9.40589706]
[1768325546472,24.49779519,142.87,142.82,16.40770792]
[1768325546667,6.99937005,142.87,142.83,16.40718049]
[1768325546870,6.99937005,142.87,142.84,9.40589706]
[1768325547060,6.99906047,142.88,142.85,9.40589706]
[1768325547260,6.99906047,142.88,142.85,0.66481337]
[1768325547462,15.73947406,142.89,142.85,0.66481337]
[1768325547867,15.73947406,142.89,142.61,36.20425959]
[1768325547868,8.93691855,142.86,142.77,15.0]
[1768325548066,24.49436629,142.89,142.77,15.0]
[1768325548067,8.74108369,142.82,142.77,0.66481337]
[1768325548379,8.74108369,142.79,142.74,0.66481337]
[1768325548680,0.65704832,142.8,142.74,7.67047265]
[1768325548878,9.39813201,142.8,142.74,16.41155634]
[1768325549458,7.00329154,142.79,142.74,16.41155634]
[1768325550375,7.00329154,142.79,142.7,35.03638175]
[1768325550376,8.74108369,142.75,142.7,7.67250246]
[1768325550562,8.74108369,142.75,142.71,0.66481337]
[1768325551071,8.74108369,142.74,142.71,0.66481337]
[1768325551262,59.52797813,142.79,142.71,0.66481337]
[1768325551577,8.74108369,142.75,142.71,0.66481337]
[1768325551878,8.74108369,142.74,142.71,0.66481337]
[1768325552254,7.00458255,142.77,142.72,0.66481337]
[1768325552671,8.74108369,142.75,142.72,0.66481337]
[1768325553067,24.51526406,142.77,142.72,0.66481337]
[1768325553263,8.74108369,142.74,142.72,0.66481337]
[1768325553881,8.74108369,142.75,142.72,0.66481337]
[1768325555174,15.74634563,142.75,142.72,0.66481337]
[1768325555366,0.12042892,142.79,142.72,0.66481337]
[1768325555367,8.74108369,142.76,142.73,0.70051753]
[1768325556263,8.74108369,142.75,142.73,0.70051753]
[1768325556467,8.74108369,142.74,142.71,0.70051753]
[1768325557064,8.74108369,142.73,142.69,13.48051753]
[1768325557278,8.74108369,142.71,142.69,13.48051753]
[1768325557478,8.74108369,142.7,142.67,0.80051753]
[1768325557662,0.11980505,142.73,142.67,0.80051753]
[1768325557663,8.74108369,142.69,142.67,0.80051753]
[1768325559390,5.38824454,142.69,142.67,0.80051753]
[1768325559580,5.38824454,142.68,142.67,0.80051753]
[1768325559783,5.38824454,142.68,142.67,0.1]
[1768325560487,5.38824454,142.68,142.66,0.70051753]
[1768325560704,5.38824454,142.67,142.66,0.70051753]
[1768325562369,7.00788576,142.7,142.66,0.70051753]
[1768325562370,5.38824454,142.68,142.66,0.70051753]
[1768325562984,5.38824454,142.69,142.66,7.71012115]
[1768325563389,5.38824454,142.68,142.66,0.70051753]
[1768325564588,5.38824454,142.67,142.65,0.70051753]
[1768325566783,5.38824454,142.67,142.65,7.7105547]
[1768325567287,7.00790184,142.7,142.65,7.71063157]
[1768325567490,5.38824454,142.68,142.65,0.70051753]
[1768325568079,5.38824454,142.67,142.65,0.70051753]
[1768325568674,5.38824454,142.67,142.65,7.71065863]
[1768325568890,5.38824454,142.68,142.65,7.71065863]
[1768325569190,5.38824454,142.68,142.66,0.70051753]
[1768325573087,5.38824454,142.67,142.64,7.71114385]
[1768325573292,5.38824454,142.66,142.64,7.71114385]
[1768325573598,5.38824454,142.67,142.65,7.71064428]
[1768325575091,5.38824454,142.67,142.65,0.70051753]
[1768325576394,5.38824454,142.68,142.66,0.70051753]
[1768325576899,5.38824454,142.67,142.66,0.70051753]
[1768325578089,7.10589775,142.72,142.67,0.70051753]
[1768325578293,5.38824454,142.69,142.67,0.70051753]
[1768325578490,5.38824454,142.68,142.65,7.71047995]
[1768325578692,5.38824454,142.67,142.65,0.70051753]
[1768325579180,7.00770847,142.7,142.65,0.70051753]
[1768325579386,5.38824454,142.67,142.65,0.70051753]
[1768325580495,5.38824454,142.69,142.66,0.70051753]
[1768325580890,5.38824454,142.68,142.66,0.70051753]
[1768325584114,5.38824454,142.68,142.63,13.48051753]
[1768325584115,5.38824454,142.67,142.63,13.48051753]
[1768325584288,5.38824454,142.66,142.63,13.48051753]
[1768325584478,5.38824454,142.67,142.64,0.70051753]
[1768325584688,7.00770847,142.7,142.64,0.70051753]
[1768325584893,5.38824454,142.68,142.66,0.68531441]
[1768325585294,5.38824454,142.69,142.67,0.68531441]
[1768325585513,5.38824454,142.7,142.67,0.68531441]
[1768325585897,5.38824454,142.72,142.67,0.68531441]
[1768325586080,5.38824454,142.73,142.69,0.68531441]
[1768325586284,5.38824454,142.74,142.7,0.68531441]
[1768325586484,5.38824454,142.73,142.7,0.68531441]
[1768325586690,5.38824454,142.72,142.7,0.68531441]
[1768325586881,5.38824454,142.71,142.69,12.78]
[1768325587082,5.38824454,142.7,142.68,0.68531441]
[1768325587309,5.38824454,142.72,142.68,0.68531441]
[1768325587501,5.38824454,142.71,142.68,0.68531441]
[1768325587820,5.38824454,142.72,142.68,0.68531441]
[1768325588106,5.38824454,142.71,142.68,0.68531441]
[1768325588789,5.38824454,142.7,142.66,20.47488104]
[1768325589004,7.10618099,142.72,142.66,13.46531441]
[1768325589005,5.38824454,142.68,142.66,13.46531441]
[1768325589513,5.38824454,142.67,142.64,0.68531441]
[1768325589895,5.38824454,142.67,142.65,0.68531441]
[1768325590701,5.38824454,142.68,142.65,0.68531441]
[1768325591690,5.38824454,142.67,142.65,0.68531441]
[1768325594213,17.51663216,142.73,142.65,7.010152]
[1768325594412,17.51663216,142.73,142.65,5.38824454]
[1768325594413,5.38824454,142.71,142.65,5.38824454]
[1768325594616,5.38824454,142.71,142.64,12.39890073]
[1768325594797,5.38824454,142.71,142.65,0.68531441]
[1768325594991,5.38824454,142.71,142.67,0.68531441]
[1768325595410,12.39574255,142.71,142.67,0.68531441]
[1768325595613,5.38824454,142.69,142.66,12.78]
[1768325595792,5.38824454,142.69,142.66,13.46274137]
[1768325596192,5.38824454,142.68,142.64,20.47325341]
[1768325596610,5.38824454,142.67,142.64,20.47325341]
[1768325597115,5.38824454,142.68,142.64,20.47325341]
[1768325597896,12.39704632,142.68,142.64,20.47325341]
[1768325599412,2.26358059,142.67,142.64,0.68274137]
[1768325599613,2.26358059,142.65,142.62,0.1]
[1768325599794,2.26358059,142.65,142.62,0.78274137]
[1768325599999,2.26358059,142.66,142.63,7.69344508]
[1768325601010,9.2727768,142.67,142.63,7.69344508]
[1768325601219,9.2727768,142.67,142.63,0.68274137]
[1768325601423,5.39045052,142.66,142.62,7.79419087]
[1768325602614,5.39045052,142.66,142.63,7.01105099]
[1768325602835,5.39045052,142.66,142.63,7.69379236]
[1768325603497,5.39045052,142.66,142.62,7.79414565]
[1768325603711,12.40026786,142.66,142.62,7.79414565]
[1768325603907,7.29543081,142.67,142.62,7.79414565]
[1768325604113,5.39045052,142.66,142.62,7.79414565]
[1768325604420,5.39045052,142.66,142.63,0.68274137]
[1768325605506,0.65669506,142.69,142.64,0.68274137]
[1768325605711,5.455176,142.68,142.64,0.68274137]
[1768325606012,5.68018061,142.68,142.64,0.68274137]
[1768325606407,5.39045052,142.67,142.64,0.68274137]
[1768325606608,5.67651133,142.65,142.62,0.1]
[1768325606899,5.39045052,142.64,142.62,0.1]
[1768325607496,0.28606081,142.65,142.62,0.1]
[1768325607696,5.39045052,142.64,142.62,0.1]
[1768325608712,0.65669506,142.63,142.62,0.0131917]
[1768325608915,6.04714558,142.63,142.58,7.6960428]
[1768325609111,5.39045052,142.62,142.58,7.6960428]
[1768325609900,5.5950912,142.6,142.57,79.30454151]
[1768325610110,7.0120361,142.62,142.58,0.68274137]
[1768325610310,5.39045052,142.62,142.59,0.68274137]
[1768325610505,5.39045052,142.61,142.57,79.98728288]
[1768325610707,7.21148983,142.63,142.58,0.68274137]
[1768325610919,0.20012059,142.63,142.59,0.68274137]
[1768325611121,17.52611731,142.65,142.59,0.68274137]
[1768325611122,12.40073514,142.65,142.59,0.68274137]
[1768325611704,12.40073514,142.65,142.6,7.69536409]
[1768325611919,12.40073514,142.65,142.61,0.68274137]
[1768325612318,5.39045052,142.64,142.61,0.68274137]
[1768325612906,5.39045052,142.64,142.61,7.69487127]
[1768325613106,12.40073514,142.65,142.61,0.68274137]
[1768325613928,12.40073514,142.65,142.61,7.69481534]
[1768325614122,12.40073514,142.65,142.61,0.68274137]
[1768325615532,5.39045052,142.65,142.61,7.6948688]
[1768325615727,12.60038092,142.66,142.61,7.6948688]
[1768325615913,12.60038092,142.66,142.62,0.66293729]
[1768325616113,0.72317896,142.68,142.63,0.66293729]
[1768325616419,5.39045052,142.7,142.65,0.66293729]
[1768325616607,7.00585656,142.74,142.69,0.66293729]
[1768325617007,12.39630708,142.74,142.7,0.66293729]
[1768325619129,17.51257475,142.76,142.7,0.66293729]
[1768325619130,5.52475205,142.76,142.71,0.66293729]
[1768325619306,5.52475205,142.76,142.71,0.60293729]
[1768325619512,12.39517477,142.77,142.71,0.60293729]
[1768325619713,12.5888763,142.77,142.71,0.60293729]
[1768325620103,30.09955781,142.77,142.71,0.60293729]
[1768325620507,5.39045052,142.88,142.7,12.39807524]
[1768325620508,57.00818235,142.96,142.74,5.39045052]
[1768325620833,12.15544811,142.81,142.75,5.39045052]
[1768325621033,7.00182047,142.82,142.76,7.00476323]
[1768325621333,8.93427151,142.82,142.77,0.66293729]
[1768325623725,15.93622214,142.82,142.77,7.66690104]
[1768325624627,15.93622214,142.82,142.78,0.66293729]
[1768325624821,7.19503178,142.83,142.78,0.66293729]
[1768325625022,8.74056998,142.81,142.76,0.66293729]
[1768325625229,8.74056998,142.78,142.74,0.66293729]
[1768325627045,15.94829435,142.79,142.74,0.66293729]
[1768325629622,15.74421348,142.79,142.75,0.66293729]
[1768325629829,7.0036435,142.79,142.75,0.66293729]
[1768325630340,0.71788419,142.8,142.76,0.66293729]
[1768325630548,9.45845417,142.8,142.76,0.66293729]
[1768325630740,8.74056998,142.79,142.74,7.668664]
[1768325630936,8.93951334,142.79,142.74,7.668664]
[1768325631120,7.00378204,142.78,142.74,0.66293729]
[1768325631528,16.4570468,142.78,142.74,0.66293729]
[1768325631855,16.4570468,142.78,142.73,0.66293729]
[1768325631856,8.94465085,142.77,142.73,0.66293729]
[1768325632351,0.20408087,142.77,142.73,7.66893794]
[1768325632543,18.22952845,142.81,142.75,0.66293729]
[1768325632735,8.74056998,142.79,142.75,0.66293729]
[1768325635251,8.74056998,142.8,142.76,0.66293729]
[1768325635639,8.74056998,142.8,142.76,7.66765437]
[1768325635640,9.45845417,142.8,142.76,7.66765437]
[1768325635842,0.19894336,142.79,142.76,7.00471708]
[1768325636230,0.71269478,142.78,142.75,7.00479469]
[1768325636460,0.71269478,142.78,142.74,69.80557017]
[1768325636837,0.71269478,142.78,142.75,7.00511922]
[1768325637349,16.46692087,142.8,142.76,0.66293729]
[1768325638757,7.72635089,142.8,142.76,0.66293729]
[1768325638934,16.46692087,142.8,142.76,0.66293729]
[1768325639342,8.74056998,142.79,142.76,0.66293729]
[1768325640152,16.46692087,142.8,142.76,0.66293729]
[1768325640937,8.93427151,142.77,142.72,13.44293729]
[1768325641242,8.74056998,142.77,142.73,0.66293729]
[1768325641460,15.74491379,142.77,142.73,7.66913044]
[1768325641639,15.74491379,142.77,142.73,7.00619315]
[1768325641846,16.46685204,142.8,142.74,0.66293729]
[1768325642042,8.74056998,142.77,142.74,0.66293729]
[1768325642241,8.74056998,142.76,142.72,0.66293729]
[1768325642747,8.74056998,142.75,142.71,7.0067401]
[1768325643059,8.74056998,142.75,142.71,7.66967739]
[1768325643259,8.74056998,142.75,142.72,7.00647485]
[1768325643564,3.5327204,142.76,142.72,0.66293729]
[1768325645365,10.53783385,142.76,142.72,0.66293729]
[1768325646160,3.5327204,142.73,142.69,0.70576605]
[1768325647560,3.5327204,142.73,142.7,7.71343683]
[1768325648951,3.5327204,142.75,142.71,0.70576605]
[1768325649751,3.5327204,142.73,142.69,7.71374963]
[1768325650042,0.6721393,142.71,142.67,0.70576605]
[1768325650241,3.5327204,142.71,142.67,0.70576605]
[1768325650962,3.5327204,142.71,142.67,7.71488132]
[1768325651169,3.5327204,142.73,142.68,0.70576605]
[1768325652145,3.5327204,142.72,142.69,0.70576605]
[1768325653443,7.69030632,142.76,142.69,0.70576605]
[1768325653648,3.5327204,142.75,142.7,0.70576605]
[1768325654067,3.5327204,142.74,142.7,0.70576605]
[1768325654252,3.5327204,142.74,142.71,0.70576605]
[1768325654653,10.53861674,142.74,142.71,0.70576605]
[1768325654954,0.23099881,142.75,142.71,0.70576605]
[1768325654955,3.5327204,142.73,142.71,0.70576605]
[1768325655258,3.5327204,142.73,142.69,20.49381931]
[1768325655458,3.5327204,142.72,142.69,7.71381931]
[1768325656250,3.5327204,142.72,142.69,0.70576605]
[1768325656445,3.5327204,142.71,142.67,13.47403253]
[1768325656646,3.5327204,142.7,142.67,13.47403253]
[1768325656868,3.5327204,142.69,142.65,7.70392731]
[1768325657050,0.66272345,142.7,142.66,0.69403253]
[1768325657255,7.67373293,142.72,142.66,0.69403253]
[1768325657647,3.5327204,142.71,142.66,0.69403253]
[1768325657851,3.5327204,142.7,142.66,0.69403253]
[1768325658869,3.5327204,142.71,142.68,0.69403253]